bitfinex-derivatives/quotes_BTCF0:USTF0_20260127
["timestamp","ask_amount","ask_price","bid_price","bid_amount"]
[1769489318944,0.10156,88738.0,88725.0,0.11775002]
[1769489319351,0.11270462,88737.0,88725.0,0.11775002]
[1769489321351,0.11270462,88737.0,88705.0,0.01128409]
[1769489321352,0.00744923,88718.0,88705.0,0.01128409]
[1769489321554,0.10156,88719.0,88707.0,0.11751692]
[1769489321749,0.011285,88720.0,88707.0,0.11751692]
[1769489321950,0.10900923,88721.0,88708.0,0.12880101]
[1769489322254,0.10900923,88721.0,88708.0,0.11751692]
[1769489322453,0.00011774,88720.0,88708.0,0.11751692]
[1769489324956,0.011285,88719.0,88708.0,0.11751692]
[1769489326755,0.00111774,88720.0,88708.0,0.11751692]
[1769489326961,0.00111774,88720.0,88709.0,0.12753069]
[1769489327152,0.00111774,88720.0,88709.0,0.1162466]
[1769489327153,0.011285,88719.0,88709.0,0.1162466]
[1769489327658,0.012285,88719.0,88709.0,0.1162466]
[1769489327957,0.011286,88717.0,88709.0,0.1162466]
[1769489329454,0.012286,88717.0,88709.0,0.1162466]
[1769489329654,0.001,88717.0,88709.0,0.1162466]
[1769489332053,0.001,88717.0,88710.0,0.01128409]
[1769489332261,0.011285,88719.0,88710.0,0.01128409]
[1769489332557,0.001,88717.0,88710.0,0.01128409]
[1769489333760,0.001,88717.0,88710.0,0.12833795]
[1769489334656,0.011285,88719.0,88710.0,0.12833795]
[1769489334861,0.001,88717.0,88710.0,0.12833795]
[1769489335362,0.001,88717.0,88684.0,0.01138837]
[1769489335363,0.22367925,88716.0,88686.0,0.11999273]
[1769489335564,0.00011774,88715.0,88686.0,0.11999273]
[1769489335762,0.011287,88706.0,88686.0,0.11999273]
[1769489336558,0.011286,88709.0,88686.0,0.11999273]
[1769489336964,0.11273893,88715.0,88686.0,0.11999273]
[1769489337262,0.11093824,88714.0,88686.0,0.11999273]
[1769489337462,0.11274274,88720.0,88686.0,0.11999273]
[1769489337763,0.11091632,88719.0,88686.0,0.11999273]
[1769489337963,0.011287,88706.0,88686.0,0.11999273]
[1769489338563,0.011287,88706.0,88686.0,0.12099273]
[1769489340065,0.011287,88706.0,88686.0,0.11999273]
[1769489340559,0.011287,88702.0,88686.0,0.11999273]
[1769489340762,0.00109416,88705.0,88686.0,0.11999273]
[1769489340763,0.00109416,88704.0,88686.0,0.11999273]
[1769489340958,0.011288,88697.0,88686.0,0.11999273]
[1769489342556,0.10156,88711.0,88686.0,0.11999273]
[1769489342557,0.00192443,88701.0,88686.0,0.11999273]
[1769489342759,0.10348443,88711.0,88686.0,0.11999273]
[1769489342956,0.00192443,88702.0,88686.0,0.11999273]
[1769489343866,0.011288,88699.0,88686.0,0.11999273]
[1769489344067,0.011288,88699.0,88686.0,0.12099273]
[1769489344656,0.011288,88699.0,88686.0,0.11999273]
[1769489344860,0.011288,88699.0,88686.0,0.12099273]
[1769489345261,0.10156,88700.0,88686.0,0.12099273]
[1769489346262,0.10156,88700.0,88686.0,0.11999273]
[1769489347768,0.1016,88703.0,88686.0,0.11999273]
[1769489347965,0.1016,88704.0,88686.0,0.11999273]
[1769489348170,0.1016,88707.0,88686.0,0.11999273]
[1769489348564,0.21434846,88707.0,88686.0,0.11999273]
[1769489348959,0.011287,88706.0,88686.0,0.11999273]
[1769489349161,0.11138755,88706.0,88686.0,0.11999273]
[1769489349366,0.11138755,88706.0,88684.0,0.10156]
[1769489349367,0.12267555,88695.0,88684.0,0.10156]
[1769489349669,0.011289,88692.0,88684.0,0.10156]
[1769489350064,0.011289,88692.0,88686.0,0.001]
[1769489350265,0.011289,88692.0,88684.0,0.10156]
[1769489350866,0.012289,88692.0,88684.0,0.10156]
[1769489351669,0.012289,88692.0,88682.0,0.00651462]
[1769489352860,0.011289,88692.0,88682.0,0.00651462]
[1769489353061,0.012289,88692.0,88682.0,0.00651462]
[1769489353873,0.011289,88692.0,88682.0,0.00651462]
[1769489354075,0.012289,88692.0,88682.0,0.00651462]
[1769489354976,0.012289,88692.0,88680.0,0.11212515]
[1769489355275,0.011289,88689.0,88673.0,0.10949422]
[1769489355467,0.011289,88689.0,88674.0,0.0065149]
[1769489355670,0.11238755,88692.0,88674.0,0.0065149]
[1769489355870,0.011289,88689.0,88673.0,0.10949422]
[1769489356071,0.011289,88689.0,88674.0,0.00651528]
[1769489356469,0.011289,88689.0,88673.0,0.10949422]
[1769489356669,0.011289,88689.0,88674.0,0.0065149]
[1769489357172,0.12267655,88689.0,88673.0,0.10949422]
[1769489357377,0.11138755,88688.0,88674.0,0.0065149]
[1769489357877,0.11138755,88688.0,88674.0,0.11212515]
[1769489358076,0.11138755,88693.0,88674.0,0.11212515]
[1769489358280,0.011289,88686.0,88676.0,0.11212515]
[1769489358779,0.011289,88686.0,88678.0,0.11212515]
[1769489360473,0.001,88688.0,88678.0,0.11212515]
[1769489360680,0.001,88686.0,88678.0,0.11212515]
[1769489360875,0.001,88686.0,88680.0,0.11447886]
[1769489362182,0.011289,88689.0,88680.0,0.11447886]
[1769489362378,0.011289,88689.0,88673.0,0.10949422]
[1769489362379,0.12078126,88683.0,88673.0,0.00789422]
[1769489362579,0.12078126,88683.0,88664.0,0.10976436]
[1769489363081,0.12078126,88683.0,88665.0,0.10976436]
[1769489363473,0.01129,88683.0,88665.0,0.10976436]
[1769489364078,0.12078026,88687.0,88665.0,0.10976436]
[1769489364489,0.10949126,88685.0,88665.0,0.10976436]
[1769489365582,0.16263318,88680.0,88665.0,0.12105636]
[1769489366774,0.16263318,88680.0,88669.0,0.10976436]
[1769489366974,0.10949126,88685.0,88669.0,0.10976436]
[1769489369278,0.10949126,88685.0,88670.0,0.12105536]
[1769489369592,0.16263318,88680.0,88670.0,0.12105536]
[1769489369796,0.10949126,88685.0,88670.0,0.12105536]
[1769489371190,0.16263318,88680.0,88670.0,0.12105536]
[1769489371393,0.10949126,88689.0,88675.0,0.011291]
[1769489372287,0.11276245,88688.0,88675.0,0.011291]
[1769489372486,0.11089181,88687.0,88675.0,0.011291]
[1769489372888,0.10949126,88686.0,88673.0,0.12105536]
[1769489373290,0.22225498,88686.0,88673.0,0.12105536]
[1769489376792,0.22225498,88686.0,88660.0,0.16275402]
[1769489376793,0.10949126,88682.0,88662.0,0.011292]
[1769489376988,0.10949126,88673.0,88662.0,0.011292]
[1769489377795,0.10949126,88679.0,88662.0,0.12105636]
[1769489378190,0.10949126,88669.0,88647.0,0.011294]
[1769489378389,0.52697707,88678.0,88659.0,0.10976436]
[1769489378390,0.10949126,88677.0,88659.0,0.10976436]
[1769489378590,0.1016,88679.0,88660.0,0.10976436]
[1769489378792,0.10949126,88678.0,88660.0,0.10976436]
[1769489379192,0.10949126,88676.0,88660.0,0.10976436]
[1769489381596,8.48e-05,88677.0,88660.0,0.10976436]
[1769489381799,8.48e-05,88677.0,88660.0,0.27239754]
[1769489381996,0.10949126,88669.0,88646.0,0.011294]
[1769489382200,0.16263318,88662.0,88646.0,0.10976436]
[1769489382601,0.10949126,88668.0,88646.0,0.10976436]
[1769489383200,0.10949126,88666.0,88646.0,0.10976436]
[1769489384499,0.27212444,88660.0,88646.0,0.10976436]
[1769489384697,0.10949126,88659.0,88646.0,0.10976436]
[1769489384907,0.10949126,88659.0,88643.0,0.1016]
[1769489386199,0.10949126,88659.0,88643.0,0.21136436]
[1769489386909,0.10949126,88659.0,88644.0,0.10976436]
[1769489388505,0.16263318,88660.0,88644.0,0.10976436]
[1769489388700,0.27212444,88660.0,88644.0,0.10976436]
[1769489389702,0.10949126,88659.0,88644.0,0.10976436]
[1769489393908,0.10949126,88659.0,88643.0,0.1016]
[1769489401419,0.10949126,88659.0,88644.0,0.11276285]
[1769489401626,0.1115295,88668.0,88650.0,0.12405685]
[1769489401919,0.11280188,88674.0,88659.0,0.11276285]
[1769489402120,0.11191229,88673.0,88659.0,0.11276285]
[1769489402326,0.11191229,88672.0,88659.0,0.11276285]
[1769489402522,0.11293,88677.0,88659.0,0.11276285]
[1769489402523,0.11191229,88671.0,88659.0,0.11276285]
[1769489402724,0.11191229,88670.0,88659.0,0.11276285]
[1769489402924,0.1115295,88676.0,88659.0,0.11276285]
[1769489403121,0.11293,88677.0,88659.0,0.11276285]
[1769489403122,0.1115295,88674.0,88659.0,0.11276285]
[1769489403324,0.1115295,88669.0,88647.0,0.011294]
[1769489403519,0.1115295,88669.0,88647.0,0.12405685]
[1769489403719,0.1115295,88667.0,88647.0,0.11276285]
[1769489404015,0.1115295,88660.0,88642.0,0.11276285]
[1769489404219,0.1115295,88656.0,88642.0,0.11276285]
[1769489404416,0.16263318,88652.0,88642.0,0.11276285]
[1769489405116,0.1115295,88656.0,88642.0,0.11276285]
[1769489409124,0.11215332,88655.0,88642.0,0.11276285]
[1769489409325,0.1115295,88656.0,88642.0,0.11276285]
[1769489409628,0.11215418,88655.0,88642.0,0.11276285]
[1769489409830,0.1115295,88656.0,88642.0,0.11276285]
[1769489410125,0.11215412,88655.0,88642.0,0.11276285]
[1769489410333,0.27416268,88652.0,88636.0,0.102766]
[1769489410729,0.27416268,88652.0,88636.0,0.10928438]
[1769489411134,0.1115295,88652.0,88636.0,0.10928438]
[1769489411440,0.16263318,88650.0,88636.0,0.10928438]
[1769489411733,0.1115295,88656.0,88636.0,0.10928438]
[1769489412723,0.1115295,88656.0,88640.0,0.10217735]
[1769489413033,0.16263318,88660.0,88641.0,0.10217735]
[1769489413231,0.11222514,88659.0,88641.0,0.10217735]
[1769489413431,0.11222514,88658.0,88641.0,0.10217735]
[1769489413633,0.1128057,88659.0,88641.0,0.10217735]
[1769489413930,0.11222437,88658.0,88641.0,0.10217735]
[1769489414133,0.1128057,88659.0,88641.0,0.10217735]
[1769489414327,0.11222383,88658.0,88641.0,0.10217735]
[1769489414637,0.11280379,88659.0,88641.0,0.10217735]
[1769489414940,0.11222389,88658.0,88641.0,0.10217735]
[1769489415121,0.22433329,88659.0,88641.0,0.10217735]
[1769489415434,0.1115295,88657.0,88641.0,0.10217735]
[1769489423235,0.10859808,88655.0,88637.0,0.106121]
[1769489423433,0.10859808,88649.0,88636.0,0.00651864]
[1769489424934,0.10859808,88649.0,88636.0,0.11656325]
[1769489425334,0.10859808,88649.0,88636.0,0.11004461]
[1769489426441,0.10859808,88656.0,88636.0,0.11004461]
[1769489427734,0.011293,88660.0,88636.0,0.11004461]
[1769489427938,0.10893829,88659.0,88636.0,0.11004461]
[1769489428239,0.21753637,88658.0,88636.0,0.11004461]
[1769489428543,0.10859808,88658.0,88636.0,0.11004461]
[1769489429242,0.10859808,88658.0,88638.0,0.11576913]
[1769489429640,0.10859808,88658.0,88640.0,0.11576913]
[1769489432747,0.10859808,88647.0,88626.0,0.112937]
[1769489433642,0.10859808,88647.0,88626.0,0.10164]
[1769489434036,0.10859808,88644.0,88626.0,0.10164]
[1769489438141,0.1088082,88642.0,88622.0,0.11958696]
[1769489438342,0.1088082,88642.0,88614.0,0.00012661]
[1769489438343,0.1088082,88634.0,88615.0,0.11344243]
[1769489439246,0.1088082,88632.0,88615.0,0.11344243]
[1769489441750,0.1088082,88632.0,88614.0,0.00012661]
[1769489441952,0.011296,88631.0,88614.0,0.00012661]
[1769489442139,0.1088082,88630.0,88614.0,0.00012661]
[1769489444153,0.1088082,88630.0,88610.0,0.10164]
[1769489444154,0.1088082,88628.0,88610.0,0.10164]
[1769489444957,0.1088082,88627.0,88610.0,0.10164]
[1769489447661,0.112937,88628.0,88601.0,0.0113]
[1769489447662,0.1088082,88625.0,88601.0,0.0113]
[1769489447959,0.1088082,88625.0,88603.0,0.0113]
[1769489448150,0.1088082,88625.0,88604.0,0.11996341]
[1769489448554,0.1088082,88625.0,88605.0,0.00652025]
[1769489448959,0.1088082,88625.0,88604.0,0.11344243]
[1769489449155,0.1088082,88625.0,88605.0,0.00652027]
[1769489449552,0.1088082,88625.0,88604.0,0.11344243]
[1769489449860,0.1088082,88625.0,88605.0,0.01782027]
[1769489450160,0.10164,88628.0,88610.0,0.11344243]
[1769489450355,0.00011567,88629.0,88610.0,0.11344243]
[1769489450560,0.10164,88627.0,88610.0,0.11344243]
[1769489451059,0.2104482,88627.0,88610.0,0.11344243]
[1769489451261,0.1088082,88626.0,88610.0,0.11344243]
[1769489451456,0.1088082,88624.0,88610.0,0.11344243]
[1769489451656,0.1088082,88624.0,88607.0,0.00651992]
[1769489454063,0.1088082,88624.0,88607.0,0.12311145]
[1769489454555,0.1088082,88624.0,88607.0,0.11659153]
[1769489455062,0.1190134,88622.0,88600.0,0.11659153]
[1769489455363,0.1190134,88618.0,88604.0,0.00652099]
[1769489455661,0.1190134,88616.0,88600.0,0.11659153]
[1769489455862,0.1190134,88616.0,88601.0,0.0065207]
[1769489456368,0.1190134,88616.0,88601.0,0.11659153]
[1769489456854,0.00013033,88617.0,88599.0,0.10164]
[1769489456855,0.00013033,88617.0,88603.0,0.12789153]
[1769489457657,0.00013033,88617.0,88605.0,0.0113]
[1769489458368,0.00013033,88617.0,88606.0,0.11659153]
[1769489459771,0.11914373,88617.0,88600.0,0.11659153]
[1769489460661,0.00013033,88617.0,88600.0,0.11659153]
[1769489461056,0.00013033,88617.0,88602.0,0.1145215]
[1769489461461,0.1190134,88616.0,88602.0,0.1145215]
[1769489462370,0.00013033,88617.0,88604.0,0.11512717]
[1769489462766,0.10168,88620.0,88604.0,0.11512717]
[1769489463773,0.1190134,88619.0,88600.0,0.11512717]
[1769489463981,0.1190134,88619.0,88603.0,0.12642717]
[1769489464867,0.1190134,88619.0,88603.0,0.11512717]
[1769489466175,0.1303114,88619.0,88603.0,0.11512717]
[1769489466576,0.1190134,88619.0,88603.0,0.11512717]
[1769489467587,0.1190134,88619.0,88603.0,0.12642717]
[1769489468782,0.1190134,88619.0,88606.0,0.011299]
[1769489473391,0.1190134,88619.0,88603.0,0.0113]
[1769489473591,0.1190134,88619.0,88606.0,0.011299]
[1769489474392,0.1190134,88619.0,88603.0,0.0113]
[1769489475090,0.1190134,88619.0,88605.0,0.0113]
[1769489475599,0.1190134,88619.0,88606.0,0.0065209]
[1769489478097,0.1190134,88617.0,88606.0,0.0065209]
[1769489480402,0.1190134,88617.0,88601.0,0.0113]
[1769489480698,0.1190134,88617.0,88603.0,0.0113]
[1769489480896,0.11036337,88615.0,88603.0,0.0113]
[1769489481409,0.11036337,88615.0,88597.0,0.10168]
[1769489481410,0.11036337,88615.0,88605.0,0.0113]
[1769489482292,0.11036337,88615.0,88609.0,0.011299]
[1769489482493,0.10168,88620.0,88609.0,0.011299]
[1769489482694,0.21821216,88619.0,88609.0,0.011299]
[1769489483000,0.21821216,88618.0,88609.0,0.011299]
[1769489483200,0.10847469,88618.0,88609.0,0.011299]
[1769489483502,0.10847469,88618.0,88606.0,0.011299]
[1769489485192,0.10847469,88618.0,88608.0,0.011299]
[1769489488497,0.10847469,88618.0,88597.0,0.10168]
[1769489488705,0.10847469,88616.0,88602.0,0.0113]
[1769489489004,0.10847469,88614.0,88602.0,0.0113]
[1769489489713,0.10847469,88614.0,88599.0,0.0113]
[1769489490298,0.10847469,88614.0,88599.0,0.12805419]
[1769489490893,0.10612005,88613.0,88599.0,0.12805419]
[1769489491099,0.10847469,88614.0,88599.0,0.12805419]
[1769489491294,0.21458538,88613.0,88599.0,0.12805419]
[1769489491600,0.10847469,88610.0,88599.0,0.0113]
[1769489491797,0.10847469,88610.0,88597.0,0.10168]
[1769489492204,0.10847469,88610.0,88597.0,0.21843419]
[1769489493203,0.10847469,88610.0,88600.0,0.0113]
[1769489494097,0.10847469,88610.0,88597.0,0.22973519]
[1769489494301,0.10847469,88610.0,88568.0,0.011304]
[1769489494302,0.10847469,88597.0,88574.0,0.00652111]
[1769489494501,0.10847469,88583.0,88574.0,0.00352111]
[1769489494897,0.10847469,88583.0,88576.0,0.1695212]
[1769489495106,0.10847469,88583.0,88573.0,0.1695212]
[1769489495311,0.10847469,88583.0,88571.0,0.1695212]
[1769489495512,0.10847469,88582.0,88571.0,0.1695212]
[1769489495706,0.10847469,88582.0,88573.0,0.1695212]
[1769489495907,0.10847469,88582.0,88572.0,0.1695212]
[1769489496309,0.10847469,88581.0,88565.0,0.00010611]
[1769489498215,0.10847469,88574.0,88560.0,0.11675419]
[1769489498404,0.16286664,88570.0,88560.0,0.11675419]
[1769489498803,0.10847469,88569.0,88552.0,0.10168]
[1769489499206,0.10847469,88567.0,88552.0,0.10168]
[1769489500209,0.10847469,88567.0,88554.0,0.011306]
[1769489500407,0.10847469,88567.0,88552.0,0.10168]
[1769489501507,0.10847469,88567.0,88552.0,0.112986]
[1769489501708,0.10847469,88567.0,88553.0,0.12465911]
[1769489502010,0.10172,88566.0,88553.0,0.12465911]
[1769489502205,0.00012856,88568.0,88556.0,0.16286664]
[1769489502407,0.21019469,88579.0,88561.0,0.11675419]
[1769489502707,0.21019469,88579.0,88563.0,0.11675419]
[1769489502902,0.10847469,88578.0,88559.0,0.011306]
[1769489503102,0.10847469,88569.0,88553.0,0.00790492]
[1769489504214,0.16286664,88570.0,88553.0,0.00790492]
[1769489504215,0.10847469,88567.0,88553.0,0.00790492]
[1769489506122,0.10847469,88567.0,88553.0,0.01921092]
[1769489507223,0.10847469,88567.0,88553.0,0.00790492]
[1769489507411,0.10847469,88567.0,88553.0,0.01921092]
[1769489507611,0.10847469,88579.0,88558.0,0.11675419]
[1769489507811,0.58704,88578.0,88562.0,0.12805919]
[1769489508013,0.10172,88580.0,88565.0,0.11675419]
[1769489509514,0.10847469,88589.0,88570.0,0.12805819]
[1769489509719,0.10172,88588.0,88571.0,0.11675419]
[1769489510322,0.21019469,88588.0,88571.0,0.11675419]
[1769489510521,0.10847469,88587.0,88572.0,0.011304]
[1769489511220,0.10847469,88587.0,88572.0,0.12805819]
[1769489511817,0.10847469,88592.0,88574.0,0.12805819]
[1769489512022,0.26458664,88590.0,88574.0,0.12805819]
[1769489512225,0.37895025,88590.0,88574.0,0.12805819]
[1769489512810,0.11436361,88590.0,88577.0,0.011303]
[1769489513016,0.10172,88592.0,88577.0,0.12976449]
[1769489513525,0.11436361,88595.0,88570.0,0.16286664]
[1769489513526,0.21608361,88595.0,88580.0,0.11846149]
[1769489514618,0.11436361,88595.0,88580.0,0.11846149]
[1769489515124,0.11436361,88605.0,88584.0,0.11846149]
[1769489515310,0.11436361,88606.0,88588.0,0.11846149]
[1769489515515,0.11436361,88599.0,88583.0,0.12976349]
[1769489515717,0.11436361,88599.0,88583.0,0.11846149]
[1769489517419,0.11436361,88599.0,88584.0,0.12976349]
[1769489518215,0.11436361,88604.0,88584.0,0.12976349]
[1769489518932,0.11436361,88604.0,88588.0,0.12976349]
[1769489519424,0.11436361,88604.0,88588.0,0.11846149]
[1769489520817,0.1231444,88603.0,88588.0,0.11846149]
[1769489521017,0.1231444,88602.0,88588.0,0.11846149]
[1769489521325,0.1231444,88601.0,88588.0,0.11846149]
[1769489521522,0.11436361,88603.0,88588.0,0.11846149]
[1769489521723,0.12313717,88602.0,88593.0,0.11846149]
[1769489521923,0.11436361,88611.0,88593.0,0.11846149]
[1769489521924,0.11287318,88608.0,88593.0,0.11846149]
[1769489522123,0.12269006,88607.0,88593.0,0.11846149]
[1769489522325,0.12269006,88606.0,88593.0,0.11846149]
[1769489522628,0.12269006,88605.0,88593.0,0.11846149]
[1769489522826,0.16286664,88610.0,88593.0,0.11846149]
[1769489523127,0.12271949,88609.0,88593.0,0.11846149]
[1769489523316,0.12271949,88608.0,88600.0,0.11846149]
[1769489523623,0.27723025,88620.0,88600.0,0.12976149]
[1769489523820,0.10172,88618.0,88600.0,0.12976149]
[1769489524021,0.12275147,88617.0,88600.0,0.12976149]
[1769489524221,0.12275147,88616.0,88600.0,0.12976149]
[1769489524524,0.12275147,88615.0,88600.0,0.12976149]
[1769489524724,0.12275147,88614.0,88600.0,0.12976149]
[1769489524916,0.12275147,88613.0,88600.0,0.12976149]
[1769489525116,0.12275147,88612.0,88600.0,0.12976149]
[1769489525311,0.11436361,88617.0,88600.0,0.12976149]
[1769489525518,0.12272102,88616.0,88600.0,0.12976149]
[1769489525821,0.12272102,88615.0,88603.0,0.0113]
[1769489526019,0.12272102,88614.0,88603.0,0.11846149]
[1769489526227,0.12271071,88613.0,88603.0,0.11846149]
[1769489526525,0.11436361,88617.0,88603.0,0.11846149]
[1769489526727,0.12268386,88616.0,88603.0,0.11846149]
[1769489526925,0.12268386,88615.0,88603.0,0.11846149]
[1769489527222,0.12268386,88614.0,88604.0,0.0113]
[1769489527528,0.11436361,88617.0,88603.0,0.11846149]
[1769489527724,0.12263818,88616.0,88603.0,0.11846149]
[1769489527923,0.12263818,88615.0,88603.0,0.11846149]
[1769489528221,0.11436361,88617.0,88603.0,0.11846149]
[1769489528423,0.12261556,88616.0,88603.0,0.11846149]
[1769489528623,0.12261556,88615.0,88603.0,0.11846149]
[1769489528925,0.11436361,88617.0,88603.0,0.11846149]
[1769489529125,0.12261123,88616.0,88603.0,0.11846149]
[1769489529316,0.11436361,88617.0,88603.0,0.11846149]
[1769489529516,0.12259778,88616.0,88603.0,0.11846149]
[1769489529716,0.11436361,88617.0,88603.0,0.11846149]
[1769489529916,0.12259659,88616.0,88603.0,0.11846149]
[1769489530118,0.11436361,88617.0,88603.0,0.11846149]
[1769489530319,0.12259366,88616.0,88603.0,0.11846149]
[1769489530518,0.11436361,88617.0,88603.0,0.11846149]
[1769489530719,0.12257575,88616.0,88603.0,0.12976149]
[1769489530918,0.11436361,88624.0,88605.0,0.11846149]
[1769489531119,0.11436361,88621.0,88605.0,0.11846149]
[1769489531318,0.39980627,88620.0,88605.0,0.11846149]
[1769489531519,0.12257602,88619.0,88605.0,0.11846149]
[1769489533927,0.11436361,88628.0,88607.0,0.12976049]
[1769489534130,0.11436361,88626.0,88607.0,0.12976049]
[1769489534430,0.11436361,88624.0,88607.0,0.12976049]
[1769489535218,0.11436361,88624.0,88610.0,0.011299]
[1769489535419,0.11436361,88624.0,88610.0,0.12976049]
[1769489538321,0.10936361,88624.0,88610.0,0.12976049]
[1769489539017,0.16286664,88630.0,88614.0,0.11846149]
[1769489539227,0.11734872,88629.0,88614.0,0.11846149]
[1769489539429,0.11734872,88628.0,88614.0,0.11846149]
[1769489539627,0.11734872,88627.0,88614.0,0.11846149]
[1769489539828,0.16286664,88630.0,88614.0,0.11846149]
[1769489540024,0.11734448,88629.0,88614.0,0.11846149]
[1769489540223,0.11734448,88628.0,88614.0,0.11846149]
[1769489540416,0.11436361,88627.0,88610.0,0.12976049]
[1769489540620,0.11436361,88625.0,88610.0,0.12976049]
[1769489540918,0.11736094,88624.0,88610.0,0.12976049]
[1769489541123,0.11436361,88625.0,88610.0,0.12976049]
[1769489541331,0.11738974,88624.0,88610.0,0.12976049]
[1769489541635,0.11436361,88625.0,88610.0,0.12976049]
[1769489541818,0.11735911,88623.0,88604.0,0.11956791]
[1769489542020,0.11735911,88613.0,88598.0,0.0113]
[1769489542221,0.11735911,88609.0,88599.0,0.10168]
[1769489543731,0.11735911,88609.0,88600.0,0.0113]
[1769489546532,0.11735911,88609.0,88601.0,0.0113]
[1769489547123,0.16286664,88620.0,88601.0,0.0113]
[1769489547431,0.11127266,88618.0,88603.0,0.0113]
[1769489547732,0.11127266,88616.0,88603.0,0.0113]
[1769489548232,0.22883886,88615.0,88603.0,0.0113]
[1769489548423,0.11127266,88615.0,88603.0,0.0113]
[1769489548618,0.11756991,88614.0,88603.0,0.0113]
[1769489548824,0.11756991,88613.0,88603.0,0.0113]
[1769489549028,0.11127266,88615.0,88605.0,0.0113]
[1769489549231,0.11759058,88614.0,88605.0,0.0113]
[1769489549425,0.11759058,88613.0,88607.0,0.011299]
[1769489549634,0.11127266,88615.0,88607.0,0.011299]
[1769489549825,0.11759882,88614.0,88607.0,0.011299]
[1769489550026,0.11127266,88621.0,88607.0,0.011299]
[1769489550226,0.22887543,88620.0,88607.0,0.011299]
[1769489550427,0.22887543,88619.0,88607.0,0.011299]
[1769489550729,0.11760277,88618.0,88607.0,0.011299]
[1769489550933,0.11127266,88618.0,88607.0,0.011299]
[1769489551127,0.11762226,88617.0,88607.0,0.011299]
[1769489551330,0.11127266,88618.0,88607.0,0.011299]
[1769489551635,0.11765862,88617.0,88607.0,0.011299]
[1769489551836,0.11127266,88618.0,88607.0,0.011299]
[1769489552044,0.11765896,88617.0,88607.0,0.011299]
[1769489552237,0.11127266,88618.0,88607.0,0.011299]
[1769489552437,0.22895519,88617.0,88607.0,0.011299]
[1769489552739,0.11768253,88616.0,88607.0,0.011299]
[1769489553238,0.11768253,88616.0,88609.0,0.011299]
[1769489553429,0.11127266,88620.0,88609.0,0.011299]
[1769489553629,0.11771662,88619.0,88609.0,0.011299]
[1769489553826,0.11771662,88618.0,88609.0,0.011299]
[1769489554030,0.11771662,88617.0,88609.0,0.011299]
[1769489554227,0.11771662,88616.0,88609.0,0.011299]
[1769489554429,0.11127266,88619.0,88609.0,0.011299]
[1769489554633,0.22899614,88618.0,88609.0,0.011299]
[1769489554835,0.11772348,88617.0,88609.0,0.011299]
[1769489555427,0.10168,88626.0,88606.0,0.10987814]
[1769489555428,0.11127266,88632.0,88606.0,0.10987814]
[1769489555634,0.11127266,88630.0,88606.0,0.10987814]
[1769489555835,0.11127266,88628.0,88609.0,0.10987814]
[1769489556034,0.11127266,88626.0,88609.0,0.10987814]
[1769489556234,0.11127266,88624.0,88609.0,0.10987814]
[1769489556444,0.11690523,88623.0,88609.0,0.10987814]
[1769489556644,0.11690523,88622.0,88609.0,0.21155814]
[1769489556845,0.11127266,88624.0,88609.0,0.21155814]
[1769489557046,0.11213143,88623.0,88609.0,0.21155814]
[1769489557251,0.11213143,88622.0,88614.0,0.011298]
[1769489557445,0.11127266,88624.0,88614.0,0.011298]
[1769489557645,0.11213586,88623.0,88614.0,0.011298]
[1769489557841,0.11213586,88622.0,88614.0,0.011298]
[1769489558141,0.11127266,88624.0,88614.0,0.011298]
[1769489558347,0.1121358,88623.0,88614.0,0.011298]
[1769489558547,0.11127266,88624.0,88614.0,0.011298]
[1769489558548,0.1121358,88622.0,88614.0,0.011298]
[1769489558846,0.11127266,88624.0,88614.0,0.011298]
[1769489559046,0.11214109,88623.0,88614.0,0.011298]
[1769489559246,0.11214109,88622.0,88614.0,0.011298]
[1769489559448,0.11127266,88624.0,88614.0,0.011298]
[1769489559648,0.11214779,88623.0,88614.0,0.011298]
[1769489559848,0.11214779,88622.0,88614.0,0.011298]
[1769489560148,0.11127266,88624.0,88614.0,0.011298]
[1769489560346,0.11214778,88623.0,88614.0,0.011298]
[1769489560547,0.11214778,88622.0,88614.0,0.011298]
[1769489560747,0.11127266,88624.0,88614.0,0.011298]
[1769489560945,0.1121552,88623.0,88614.0,0.011298]
[1769489561136,0.1121552,88622.0,88614.0,0.011298]
[1769489561335,0.1121552,88621.0,88614.0,0.011298]
[1769489561541,0.1121552,88620.0,88614.0,0.011298]
[1769489561745,0.11127266,88623.0,88614.0,0.011298]
[1769489561950,0.11218927,88622.0,88614.0,0.011298]
[1769489562153,0.11218927,88621.0,88614.0,0.011298]
[1769489562347,0.11218927,88620.0,88614.0,0.011298]
[1769489562647,0.11127266,88623.0,88614.0,0.011298]
[1769489562842,0.11219871,88622.0,88614.0,0.011298]
[1769489563043,0.11219871,88621.0,88616.0,0.011298]
[1769489563251,0.11127266,88629.0,88612.0,0.10987814]
[1769489563751,0.11127266,88629.0,88616.0,0.011298]
[1769489567457,0.12257066,88618.0,88609.0,0.09066052]
[1769489567652,0.12257066,88618.0,88610.0,0.10168]
[1769489567857,0.11127266,88618.0,88609.0,0.10168]
[1769489573264,0.12257066,88618.0,88609.0,0.10168]
[1769489574264,0.011298,88616.0,88609.0,0.10168]
[1769489574961,0.011298,88616.0,88606.0,0.10168]
[1769489575560,0.012298,88616.0,88606.0,0.10168]
[1769489578162,0.011298,88620.0,88606.0,0.10168]
[1769489578366,0.10488862,88619.0,88606.0,0.10168]
[1769489578568,0.10488862,88618.0,88606.0,0.10168]
[1769489578769,0.10488862,88617.0,88606.0,0.10168]
[1769489579070,0.10488862,88616.0,88606.0,0.10168]
[1769489579254,0.011298,88620.0,88606.0,0.10168]
[1769489579457,0.10488037,88619.0,88606.0,0.10168]
[1769489579673,0.10488037,88618.0,88606.0,0.10168]
[1769489579862,0.10488037,88617.0,88606.0,0.10168]
[1769489580172,0.011298,88618.0,88598.0,0.0113]
[1769489580369,0.10487631,88617.0,88599.0,0.55884]
[1769489580560,0.10487631,88616.0,88599.0,0.55884]
[1769489580760,0.11285089,88617.0,88604.0,0.0113]
[1769489580962,0.10487435,88616.0,88604.0,0.0113]
[1769489581163,0.10487435,88615.0,88606.0,0.011299]
[1769489581364,0.011297,88627.0,88604.0,0.12]
[1769489581365,0.10487435,88614.0,88604.0,0.12]
[1769489581567,0.011297,88625.0,88604.0,0.12]
[1769489581873,0.011297,88623.0,88604.0,0.12]
[1769489582072,0.10487269,88622.0,88604.0,0.12]
[1769489582262,0.10487269,88621.0,88604.0,0.12]
[1769489582463,0.10487269,88620.0,88604.0,0.12]
[1769489582664,0.10487269,88619.0,88604.0,0.12]
[1769489582866,0.10487269,88618.0,88604.0,0.12]
[1769489583067,0.10487269,88617.0,88604.0,0.12]
[1769489583370,0.10487269,88616.0,88604.0,0.12]
[1769489583566,0.10487269,88615.0,88604.0,0.12]